bitfinex/quotes_ETHUSD_20260202
["timestamp","ask_amount","ask_price","bid_price","bid_amount"]
[1770073703016,0.0011,2353.7,2353.3,1.9541039]
[1770073703222,0.0011,2354.2,2353.3,15.32095866]
[1770073703717,0.0011,2354.2,2353.5,12.45458812]
[1770073703916,0.0011,2354.2,2353.6,0.02126664]
[1770073705239,0.0011,2354.2,2353.7,1.06215745]
[1770073705445,0.0011,2354.2,2353.8,0.53320539]
[1770073705743,11.86129479,2354.7,2353.8,0.53320539]
[1770073706543,0.8921,2354.9,2353.9,13.36685476]
[1770073706544,0.0011,2354.9,2353.9,13.36685476]
[1770073706719,0.0011,2354.9,2354.1,12.45458812]
[1770073706918,0.0011,2354.9,2354.2,1.26672545]
[1770073707221,0.0011,2354.9,2354.3,1.06188676]
[1770073708023,0.0011,2354.9,2354.3,1.0831534]
[1770073708434,0.0011,2355.1,2354.4,0.891]
[1770073709235,0.31739024,2355.6,2354.7,0.02126664]
[1770073709240,12.17758503,2355.6,2354.7,0.02126664]
[1770073709446,12.17758503,2355.6,2354.6,0.02126664]
[1770073709626,0.31739024,2355.6,2355.0,0.02126664]
[1770073709840,11.86019479,2355.9,2355.0,0.91226664]
[1770073711246,11.86019479,2355.9,2355.1,1.06152604]
[1770073711448,11.86019479,2355.9,2354.9,1.06159399]
[1770073713152,11.86019479,2355.9,2354.2,1.26672545]
[1770073713153,12.92136344,2355.9,2354.2,1.26672545]
[1770073713320,12.92136344,2355.9,2354.3,1.9741534]
[1770073713321,11.86019479,2355.7,2354.3,1.9741534]
[1770073714257,11.86019479,2355.7,2354.2,1.06190745]
[1770073714858,11.86019479,2355.7,2353.9,5.13916006]
[1770073715022,11.86019479,2355.7,2354.1,1.06197117]
[1770073715228,11.86019479,2355.3,2354.1,0.51097109]
[1770073715764,11.86019479,2355.3,2354.1,1.57294495]
[1770073716927,11.86019479,2355.3,2354.1,1.57294281]
[1770073717342,11.86019479,2355.1,2354.1,1.57294797]
[1770073718462,11.86019479,2355.1,2354.1,0.51097109]
[1770073718661,11.86019479,2354.9,2353.9,1.95304552]
[1770073718862,11.86019479,2354.9,2354.0,1.06201761]
[1770073719048,11.86019479,2354.9,2354.1,1.06197273]
[1770073719250,11.86019479,2354.9,2354.0,1.06202209]
[1770073720144,11.86019479,2354.9,2353.9,1.06204011]
[1770073720378,14.63841761,2354.9,2353.6,3.58295377]
[1770073720561,11.86019479,2354.8,2353.6,3.58295377]
[1770073722278,11.86019479,2354.6,2353.6,3.58295377]
[1770073722484,11.86019479,2354.4,2353.6,4.04757346]
[1770073723759,11.86019479,2354.4,2353.6,3.58295377]
[1770073724947,11.86019479,2354.4,2353.6,4.64514412]
[1770073725150,11.86019479,2354.7,2353.6,4.64514412]
[1770073726153,11.86019479,2354.9,2353.9,0.02126664]
[1770073726352,11.86019479,2354.9,2353.8,13.51670044]
[1770073726557,11.86019479,2354.9,2353.9,1.77651498]
[1770073727077,11.86019479,2354.9,2353.9,14.25236974]
[1770073728351,11.86019479,2354.9,2354.0,1.06202209]
[1770073729960,12.92181403,2354.9,2353.6,3.58295377]
[1770073730160,12.92181403,2354.9,2353.6,5.10977219]
[1770073730161,12.56010079,2354.7,2353.6,5.10977219]
[1770073730350,12.56010079,2354.5,2353.6,4.04757489]
[1770073730750,12.56010079,2354.5,2353.6,3.58295377]
[1770073730963,12.56010079,2354.5,2353.6,3.36895377]
[1770073732285,12.56010079,2354.5,2354.0,0.001]
[1770073732489,13.62192735,2354.5,2354.0,0.001]
[1770073735755,12.56010079,2354.5,2354.0,0.001]
[1770073735955,13.92228697,2354.5,2354.0,0.001]
[1770073737161,14.98409325,2354.5,2354.0,0.001]
[1770073737888,1.36218618,2354.5,2354.0,0.001]
[1770073738189,18.61265268,2354.8,2354.0,0.001]
[1770073738190,12.56010079,2354.7,2354.0,0.001]
[1770073739885,13.62181635,2354.7,2354.0,0.001]
[1770073740090,13.62181635,2354.7,2353.6,4.43114246]
[1770073740091,13.62181635,2354.7,2353.6,3.36895377]
[1770073740387,12.56010079,2354.5,2353.4,0.001]
[1770073740573,12.56010079,2354.3,2353.4,0.001]
[1770073740891,12.56010079,2354.1,2353.4,0.001]
[1770073741259,12.56010079,2353.9,2353.4,0.001]
[1770073741587,12.56010079,2353.7,2352.4,0.001]
[1770073741772,12.56010079,2353.5,2352.4,0.001]
[1770073742000,12.56010079,2353.3,2352.2,0.001]
[1770073742307,12.56010079,2353.1,2352.1,0.001]
[1770073742608,12.56010079,2352.9,2352.1,0.001]
[1770073742888,12.56010079,2353.2,2352.1,0.001]
[1770073743198,12.56010079,2353.1,2352.1,0.001]
[1770073743379,2.31848351,2353.0,2352.1,0.001]
[1770073743754,14.8785843,2353.0,2352.1,0.001]
[1770073748786,12.56010079,2352.8,2352.1,0.001]
[1770073748960,3.04997145,2352.7,2352.1,0.001]
[1770073749167,2.15897145,2352.6,2352.1,0.001]
[1770073749771,1.06244691,2353.1,2352.1,0.001]
[1770073749995,1.06244691,2353.1,2352.1,1.22899856]
[1770073749996,0.51818288,2353.0,2352.1,1.22899856]
[1770073751563,0.51818288,2353.0,2352.1,13.50698415]
[1770073751767,0.51818288,2353.0,2352.2,1.06283479]
[1770073753402,0.891,2353.2,2352.2,13.34082038]
[1770073753621,0.31487232,2353.7,2352.8,0.02126664]
[1770073753800,0.31487232,2353.7,2352.8,12.27798559]
[1770073753974,0.31487232,2353.7,2352.9,1.06251859]
[1770073755908,0.31487232,2353.7,2352.9,12.27798559]
[1770073756211,13.45110079,2354.2,2353.1,12.27798559]
[1770073756410,13.45110079,2354.2,2353.2,1.22779856]
[1770073757109,14.513067,2354.2,2353.2,1.22779856]
[1770073757305,14.513067,2354.2,2352.6,1.06265408]
[1770073757612,14.513067,2354.2,2352.6,13.34063967]
[1770073759120,14.513067,2354.2,2352.6,1.06265408]
[1770073759416,0.0011,2353.5,2352.6,1.06265408]
[1770073760012,12.56120079,2353.5,2352.6,1.06265408]
[1770073760212,13.81743087,2353.5,2352.4,4.25089309]
[1770073760711,14.87970696,2353.5,2352.3,1.88524383]
[1770073761013,12.32526985,2353.3,2352.3,0.001]
[1770073763110,12.32526985,2353.1,2352.3,0.001]
[1770073765331,12.32526985,2352.9,2352.3,0.001]
[1770073765842,13.25899014,2352.8,2351.2,2.43657798]
[1770073766142,13.25899014,2352.8,2351.2,14.2599928]
[1770073766143,12.32526985,2352.6,2351.2,14.2599928]
[1770073766346,12.32526985,2352.6,2351.2,15.32326097]
[1770073767127,12.32526985,2352.6,2351.3,1.06323631]
[1770073767730,1.06269925,2352.5,2351.2,15.32325627]
[1770073767934,12.32526985,2352.4,2351.2,15.32325627]
[1770073768235,14.08914646,2352.4,2351.3,1.95774579]
[1770073769429,14.08914646,2352.4,2351.2,2.43657798]
[1770073769636,14.08914646,2352.4,2351.3,11.82341482]
[1770073769933,15.15192407,2352.4,2351.3,11.82341482]
[1770073770232,15.15192407,2352.4,2351.2,2.43657798]
[1770073771110,12.32526985,2352.3,2351.2,2.43657798]
[1770073771316,12.32526985,2352.1,2351.2,2.43657798]
[1770073771905,1.06292517,2352.0,2351.5,0.001]
[1770073772106,13.21626985,2351.9,2351.2,2.43657798]
[1770073772302,13.21626985,2351.9,2351.3,0.001]
[1770073774137,13.38828541,2351.8,2351.3,0.001]
[1770073774309,1.33877433,2351.7,2351.3,0.001]
[1770073776630,14.72712726,2351.7,2351.3,0.001]
[1770073776834,14.72712726,2351.7,2351.1,0.001]
[1770073781635,13.66404418,2351.7,2351.1,0.001]
[1770073781837,0.891,2351.9,2351.1,0.001]
[1770073784127,0.891,2351.9,2351.1,1.06433205]
[1770073784344,0.891,2351.9,2351.1,0.001]
[1770073784850,1.95397237,2351.9,2351.1,0.001]
[1770073785162,14.27924222,2351.9,2351.1,0.001]
[1770073785325,12.32526985,2351.7,2351.1,0.001]
[1770073786222,12.32526985,2351.6,2351.1,0.001]
[1770073787146,1.85309585,2351.8,2351.1,0.001]
[1770073787649,0.891,2351.9,2351.3,0.001]
[1770073787826,1.95399403,2351.9,2351.3,0.001]
[1770073788251,0.891,2351.9,2351.3,0.001]
[1770073788450,1.9539984,2351.9,2351.3,0.001]
[1770073788669,1.9549984,2351.9,2351.3,0.001]
[1770073788854,0.0011,2351.5,2351.3,0.001]
[1770073790856,11.99709837,2351.5,2351.0,0.001]
[1770073791031,13.19570821,2351.4,2351.0,0.001]
[1770073791746,11.99599837,2351.2,2350.7,0.001]
[1770073793428,1.95526773,2351.3,2350.7,0.001]
[1770073793429,0.892,2351.3,2350.7,0.001]
[1770073793741,0.892,2351.3,2350.7,1.26533105]
[1770073794527,0.892,2351.3,2350.7,2.32882723]
[1770073795326,0.0011,2351.5,2350.7,2.32882723]
[1770073795530,0.0011,2351.5,2350.7,14.97013768]
[1770073798438,0.0011,2351.7,2350.8,12.64131045]
[1770073798640,0.0011,2351.7,2350.9,14.13832422]
[1770073799553,0.0011,2351.7,2351.1,12.64131045]
[1770073800461,0.0011,2351.7,2350.9,1.49701377]
[1770073800655,0.0011,2351.7,2350.9,1.06342118]
[1770073802242,0.0011,2351.7,2350.8,4.25386252]
[1770073802443,0.0011,2351.7,2350.8,16.89517297]
[1770073805175,0.0011,2351.7,2350.9,0.001]
[1770073805341,0.0011,2351.5,2350.9,0.001]
[1770073805537,0.0011,2351.5,2350.9,1.92349718]
[1770073807378,0.0011,2351.5,2350.9,15.62818587]
[1770073810492,14.66543209,2352.5,2351.0,13.55457709]
[1770073810651,1.14587516,2352.7,2351.4,12.64131045]
[1770073810851,1.14587516,2352.7,2351.6,12.64131045]
[1770073811059,0.0011,2352.7,2351.8,12.64131045]
[1770073811682,0.0011,2352.7,2351.8,13.70429098]
[1770073811869,0.0011,2352.7,2351.8,12.64131045]
[1770073812079,11.99709837,2352.7,2351.7,2.41635645]
[1770073812261,11.99709837,2352.7,2351.8,1.06301096]
[1770073812465,11.99709837,2352.7,2351.9,0.2416342]
[1770073813594,11.99709837,2352.7,2351.6,4.25241142]
[1770073815065,11.99709837,2352.7,2351.6,16.89372187]
[1770073815268,11.99709837,2352.7,2351.7,12.64131045]
[1770073815783,11.99709837,2352.7,2351.8,1.06301556]
[1770073815975,0.0011,2352.7,2351.8,13.70432601]
[1770073816182,0.0011,2352.7,2351.9,1.79564262]
[1770073817086,11.99709837,2352.7,2351.9,1.79564262]
[1770073817383,11.99709837,2352.7,2351.8,1.06301556]
[1770073817986,11.99709837,2352.7,2351.7,1.06306076]
[1770073819164,0.0011,2352.5,2351.7,1.06306076]
[1770073820390,0.0011,2352.5,2351.7,13.29156153]
[1770073822683,0.0011,2352.5,2351.9,12.22850077]
[1770073822883,0.0011,2352.5,2352.0,13.45135085]
[1770073823090,11.92473766,2353.0,2352.0,13.45135085]
[1770073823365,0.892,2353.2,2352.0,13.45135085]
[1770073823591,0.892,2353.2,2352.2,12.22850077]
[1770073823795,12.81673766,2353.2,2352.2,12.22850077]
[1770073823969,12.81673766,2353.2,2352.3,1.31195008]
[1770073824172,13.8791271,2353.2,2352.3,1.31195008]
[1770073824369,13.8791271,2353.2,2351.7,14.18256153]
[1770073826297,13.8791271,2353.2,2351.5,4.25224305]
[1770073826298,11.92473766,2353.0,2351.5,1.06313161]
[1770073826594,11.92473766,2352.7,2351.3,1.06324161]
[1770073826902,11.92473766,2352.5,2351.4,1.75447088]
[1770073827421,1.29873014,2352.6,2351.4,13.98297165]
[1770073827616,11.92473766,2352.8,2351.4,13.98297165]
[1770073827915,11.92473766,2352.8,2351.7,12.22850077]
[1770073828214,15.71473766,2353.0,2351.7,12.22850077]
[1770073828374,11.92473766,2353.0,2351.9,12.22850077]
[1770073828712,12.98721376,2353.0,2352.0,1.06292517]
[1770073829083,11.92473766,2353.0,2352.0,1.06292517]
[1770073831515,0.0011,2352.8,2352.0,1.06292517]
[1770073831895,11.92583766,2352.8,2351.9,0.001]
[1770073832096,11.92473766,2352.6,2351.9,0.001]
[1770073832287,11.92473766,2352.6,2351.9,1.06396098]
[1770073832489,0.0011,2352.8,2351.9,13.29246175]
[1770073833195,11.92583766,2352.8,2351.9,1.06396098]
[1770073837821,12.98840276,2352.8,2351.9,0.001]
[1770073837999,11.92473766,2352.6,2351.9,0.001]
[1770073839135,1.19258377,2352.7,2351.9,0.001]
[1770073839432,11.92583766,2352.8,2352.0,1.06292517]
[1770073844427,11.92583766,2352.8,2352.1,12.22950077]
[1770073844428,0.0011,2352.8,2352.1,12.22950077]
[1770073844633,0.0011,2352.6,2352.1,12.22950077]
[1770073846515,0.0011,2352.6,2352.2,1.06283479]
[1770073846728,0.0011,2352.6,2352.3,1.75436747]
[1770073849445,0.0011,2352.8,2352.4,1.06274443]
[1770073849742,0.0011,2352.8,2352.4,13.2912452]
[1770073850533,0.0011,2353.0,2352.4,13.2912452]
[1770073853764,0.0011,2353.5,2352.5,12.71719369]
[1770073853943,0.0011,2353.5,2352.7,12.71719369]
[1770073854149,12.3092911,2353.7,2352.9,12.71719369]
[1770073854150,0.31911043,2353.7,2352.9,12.71719369]
[1770073854355,11.99018067,2354.1,2352.9,12.71719369]
[1770073854663,13.05317807,2354.3,2352.9,12.71719369]
[1770073855453,11.99128067,2354.3,2352.9,12.71719369]
[1770073855622,13.72143332,2354.3,2353.0,16.07918425]
[1770073856817,13.72143332,2354.3,2353.1,12.71719369]
[1770073857445,11.99128067,2354.3,2353.3,12.71719369]
[1770073857653,11.99128067,2354.3,2353.4,1.06229285]
[1770073860649,0.0011,2354.5,2353.8,12.71719369]
[1770073860852,0.8921,2354.7,2354.1,12.71719369]
[1770073860853,0.0011,2354.7,2354.1,12.71719369]
[1770073861154,0.0011,2354.9,2354.2,1.27384603]
[1770073861352,0.0011,2354.9,2353.6,0.891]
[1770073861353,11.99018067,2354.8,2353.6,0.891]
[1770073861718,11.99018067,2354.6,2353.6,1.95319442]
[1770073861925,11.99128067,2354.9,2353.7,12.71719369]
[1770073863629,11.99128067,2354.9,2353.8,1.06211232]
[1770073863844,13.19051874,2354.9,2353.9,1.80277553]
[1770073864556,11.99128067,2354.9,2353.9,14.51996922]
[1770073865848,11.99128067,2354.9,2354.0,1.06202209]
[1770073866626,13.05289919,2354.9,2353.9,1.80277553]
[1770073866965,13.05289919,2354.9,2353.7,1.06215411]
[1770073867423,0.891,2354.8,2353.6,1.06218621]
[1770073867629,11.99018067,2354.7,2353.5,1.06221534]
[1770073867829,11.99018067,2354.5,2353.4,1.06229007]
[1770073868064,11.99018067,2354.5,2353.5,1.06224272]
[1770073868442,11.99018067,2354.8,2353.5,13.77943641]
[1770073868655,11.99018067,2354.8,2353.7,12.73846033]
[1770073870164,11.99018067,2354.8,2353.8,1.06211232]
[1770073870332,11.99018067,2354.6,2353.9,1.8049022]
[1770073870527,11.99018067,2354.6,2353.8,1.06211232]
[1770073871023,11.99128067,2354.9,2353.8,1.06211232]
[1770073871225,11.99128067,2354.9,2353.8,13.77930601]
[1770073874367,11.99128067,2354.9,2353.8,13.78030601]
[1770073874525,0.0011,2354.7,2353.8,1.06311232]
[1770073874731,11.99128067,2354.7,2353.9,0.53115616]
[1770073874932,11.99128067,2354.7,2353.8,1.0631013]
[1770073875960,11.99128067,2354.7,2353.8,0.001]
[1770073876267,11.99128067,2354.7,2353.8,1.06310174]
[1770073876954,13.05299479,2354.7,2353.8,0.001]
[1770073877262,11.99128067,2354.7,2353.8,0.001]
[1770073877466,13.29547741,2354.6,2353.8,0.001]
[1770073883350,1.30529674,2354.6,2353.8,0.001]
[1770073883553,1.30529674,2354.6,2353.9,1.0620672]
[1770073883757,0.0011,2354.7,2353.9,1.0620672]
[1770073884743,12.95119563,2354.7,2353.8,0.001]
[1770073885542,11.8894651,2354.7,2353.8,0.001]
[1770073886562,12.9511786,2354.7,2353.8,0.001]
[1770073886760,11.8883651,2354.5,2353.8,0.001]
[1770073890265,0.0011,2354.7,2353.8,11.78245459]
[1770073890466,11.8894651,2354.7,2354.0,0.001]
[1770073890856,0.0011,2354.5,2354.0,0.001]
[1770073892789,11.8883651,2354.4,2353.7,1.50232817]
[1770073893092,0.0011,2354.9,2353.7,1.50232817]
[1770073893093,11.8883651,2356.5,2356.2,2.73069]
[1770073893252,12.94926055,2356.5,2355.6,1.50926477]
[1770073893456,0.22194351,2358.0,2356.7,11.78145459]
[1770073893656,0.22194351,2358.0,2357.5,1.50715261]
[1770073893850,12.94831626,2358.6,2357.8,1.50715261]
[1770073894156,11.8883651,2358.4,2356.7,8.29673192]
[1770073894351,11.8883651,2358.1,2356.7,2.19333147]
[1770073894751,11.8883651,2358.1,2356.5,15.01764958]
[1770073894752,11.90963174,2357.9,2356.5,0.22188976]
[1770073894984,11.8883651,2357.9,2356.5,1.28278059]
[1770073896050,11.8883651,2357.9,2356.5,0.22188976]
[1770073896383,11.8883651,2357.9,2356.5,1.28277432]
[1770073896782,1.06031045,2357.8,2356.5,1.28277432]
[1770073896962,1.06031045,2357.8,2356.5,2.04168696]
[1770073896963,1.29486755,2357.7,2356.5,2.04168696]
[1770073897287,13.18323265,2357.7,2356.5,0.22188976]
[1770073897982,13.18323265,2357.7,2356.5,1.28277874]
[1770073898679,1.29486755,2357.7,2356.5,13.06423333]
[1770073898978,1.06029605,2357.9,2356.5,13.06423333]
[1770073899169,11.8883651,2357.9,2356.5,13.06423333]
[1770073899369,11.8883651,2357.9,2356.5,12.84234357]
[1770073900156,11.8883651,2357.9,2356.5,1.06088898]
[1770073901184,11.8883651,2357.7,2356.3,1.06098544]
[1770073901385,1.06031045,2357.8,2356.2,1.06100335]
[1770073901386,11.8883651,2357.5,2356.2,1.06100335]
[1770073901789,11.8883651,2357.5,2356.1,1.06105364]
[1770073902881,11.8883651,2357.5,2356.0,1.06108996]
[1770073903076,11.8883651,2357.5,2355.9,4.24459444]
[1770073903285,11.8883651,2357.3,2355.9,4.24459444]
[1770073903592,13.18325065,2357.2,2355.9,6.0423159]
[1770073904397,1.29488555,2357.2,2356.0,11.01854078]
[1770073904557,11.8883651,2357.8,2356.0,11.01854078]
[1770073904558,12.94868132,2357.8,2356.1,11.78145459]
[1770073905189,12.94868132,2357.8,2356.1,12.67145459]
[1770073905488,12.94868132,2357.8,2356.2,1.06103047]
[1770073905989,12.94868132,2357.8,2356.4,0.001]
[1770073906179,0.0011,2357.5,2356.5,0.89238384]
[1770073906379,0.0011,2357.5,2356.4,0.001]
[1770073906581,0.0011,2357.5,2356.5,0.89225344]
[1770073906770,0.0011,2357.5,2356.4,0.001]
[1770073906970,0.0011,2357.5,2356.5,0.89254465]
[1770073907170,0.0011,2357.5,2356.4,0.001]
[1770073907372,0.0011,2357.5,2356.6,1.06085037]
[1770073907967,11.8894651,2357.5,2356.4,4.24459041]
[1770073908171,11.8894651,2357.5,2356.5,1.95350117]
[1770073908172,13.07731161,2357.4,2356.5,1.95350117]
[1770073908373,13.07731161,2357.4,2356.5,1.06086679]
[1770073909558,1.18894651,2357.4,2356.4,0.001]
[1770073909762,0.0011,2357.5,2356.5,0.89289848]
[1770073909963,0.0011,2357.5,2356.4,0.001]
[1770073910163,0.0011,2357.5,2356.5,0.89287773]
[1770073910394,13.45246572,2357.5,2356.4,0.001]
[1770073910598,12.39200218,2357.5,2356.5,0.89313164]
[1770073910787,13.73614602,2357.4,2356.4,0.001]
[1770073910972,13.73614602,2357.4,2356.5,0.89318637]
[1770073911178,13.73614602,2357.4,2356.4,0.001]
[1770073911377,13.73614602,2357.4,2356.5,0.89342208]
[1770073911573,13.73614602,2357.4,2356.4,0.001]
[1770073911797,1.3737246,2357.3,2356.5,0.89345167]
[1770073912089,1.3737246,2357.3,2356.4,0.001]
[1770073912392,1.3737246,2357.3,2356.5,0.89380057]
[1770073912696,1.3737246,2357.3,2356.4,0.001]
[1770073912997,1.3737246,2357.3,2356.5,0.89382036]
[1770073913196,1.37646268,2357.2,2356.4,0.001]
[1770073913381,1.37646268,2357.2,2356.5,0.89423446]
[1770073913586,1.37646268,2357.2,2356.4,0.001]
[1770073913799,1.37646268,2357.2,2356.5,1.95509645]
[1770073913970,1.37646268,2357.2,2356.5,1.06089217]
[1770073914295,1.37646268,2357.2,2356.6,0.89470289]
[1770073914482,1.37646268,2357.2,2356.5,1.06089217]
[1770073914794,1.37646268,2357.2,2356.6,0.89470404]
[1770073914968,1.37646268,2357.2,2356.5,1.06089277]
[1770073915297,1.37646268,2357.2,2356.6,0.89471113]
[1770073915597,1.37646268,2357.2,2356.5,1.06089277]
[1770073915768,1.37646268,2357.2,2356.6,0.89534203]
[1770073916093,1.37646268,2357.2,2356.4,1.06190396]
[1770073916324,1.37646268,2357.2,2356.5,1.95693839]
[1770073916488,1.37646268,2357.2,2356.6,0.89607302]
[1770073916668,1.37646268,2357.2,2356.7,0.89607302]
[1770073916868,1.37646268,2357.2,2356.5,1.06086537]
[1770073917068,1.37646268,2357.2,2356.6,0.89607067]
[1770073917366,1.37646268,2357.2,2356.7,0.89607067]
[1770073917662,1.37646268,2357.2,2356.5,1.06086537]
[1770073917866,1.37646268,2357.2,2356.6,0.89697833]
[1770073918197,1.37646268,2357.2,2356.7,0.89697833]
[1770073918399,1.37646268,2357.2,2356.8,0.89697833]
[1770073918598,1.37646268,2357.2,2356.5,1.06086537]
[1770073918812,1.37646268,2357.2,2356.6,0.89802703]
[1770073919001,1.37646268,2357.2,2356.7,0.89802703]
[1770073919211,1.37646268,2357.2,2356.8,0.89802703]
[1770073919496,1.37646268,2357.2,2356.9,0.89802703]
[1770073919799,1.37646268,2357.2,2357.0,0.89802703]
[1770073919972,1.37646268,2357.2,2356.6,0.001]
[1770073920171,1.37646268,2357.2,2356.7,0.89922571]
[1770073920372,1.37646268,2357.2,2356.8,0.89922571]
[1770073920602,1.37646268,2357.2,2356.9,0.89922571]
[1770073920807,14.82797794,2357.2,2356.4,0.001]
[1770073920980,12.39090218,2357.0,2356.1,0.001]
[1770073921321,12.39090218,2357.0,2356.1,2.23660715]
[1770073921675,12.39090218,2357.0,2355.9,2.23560715]
[1770073921985,12.39090218,2356.8,2355.8,2.23560715]
[1770073922184,12.39090218,2356.8,2355.8,2.26635019]
[1770073922404,12.39090218,2356.6,2355.6,7.9218617]
[1770073922871,12.39090218,2356.6,2355.4,0.001]
[1770073923832,1.34516175,2356.7,2355.6,1.06127982]
[1770073923989,2.4059724,2356.7,2355.8,1.50915445]
[1770073924310,14.79687458,2356.7,2355.8,1.50915445]
[1770073924507,14.14119543,2356.6,2355.8,1.50915445]
[1770073925408,14.14119543,2356.6,2355.7,1.50915445]
[1770073925610,1.75029325,2356.6,2355.8,1.50915445]
[1770073925812,1.34516175,2356.7,2355.9,1.50915445]
[1770073926114,1.06062534,2357.1,2355.9,1.50915445]
[1770073926337,13.45152752,2357.1,2355.9,1.50915445]
[1770073927486,1.06062534,2357.1,2356.0,13.45149776]
[1770073927686,1.06062534,2357.1,2356.1,1.50915445]
[1770073930511,14.34151756,2357.2,2356.1,2.57021601]
[1770073930728,1.8583839,2357.1,2356.1,4.02147194]
[1770073931014,1.06067034,2357.0,2356.1,1.50915445]
[1770073931817,1.06067034,2357.0,2356.0,1.50915445]
[1770073932412,1.06067034,2357.0,2356.0,2.57026914]
[1770073932614,2.03802099,2357.0,2356.1,1.31809713]
[1770073932826,2.03802099,2357.0,2356.2,0.90389029]
[1770073933123,2.03802099,2357.0,2356.3,0.90389029]
[1770073933421,2.03802099,2357.0,2356.4,0.90389029]
[1770073933596,0.0011,2356.9,2356.5,0.90389029]
[1770073933798,0.31107726,2356.9,2356.1,0.25702691]
[1770073934012,0.31107726,2356.9,2356.2,0.90385143]
[1770073934326,0.31107726,2356.9,2356.3,0.90385143]
[1770073934490,0.31107726,2356.9,2356.4,0.90385143]
[1770073934690,0.31107726,2356.9,2356.5,0.90385143]
[1770073934891,0.31107726,2356.9,2356.1,0.25702691]
[1770073935108,0.31107726,2356.9,2356.2,0.90368377]
[1770073935109,1.37179503,2356.9,2356.2,0.90368377]
[1770073935320,1.58007182,2356.8,2356.3,0.90368377]
[1770073935521,1.58007182,2356.8,2356.4,0.90368377]
[1770073935691,1.58007182,2356.8,2356.5,0.2625237]
[1770073935888,1.58007182,2356.8,2356.0,1.4256801]
[1770073936210,13.920974,2356.8,2355.8,0.001]
[1770073936409,0.29518673,2356.7,2355.8,0.001]
[1770073937220,1.35601016,2356.7,2355.8,0.001]
[1770073939528,13.74691234,2356.7,2355.8,0.001]
[1770073944113,13.74691234,2356.7,2355.8,12.14529989]
[1770073944114,12.68608891,2356.7,2355.8,12.14529989]
[1770073944331,0.29518673,2356.7,2355.9,1.21452999]
[1770073944539,0.29518673,2356.7,2355.9,13.35882988]
[1770073947757,0.29518673,2356.7,2356.0,0.90602111]
[1770073947955,0.29518673,2356.7,2356.1,0.90602111]
[1770073948157,0.29518673,2356.7,2356.2,0.90602111]
[1770073948455,1.53007182,2356.8,2356.3,0.90602111]
[1770073948659,1.53007182,2356.8,2356.4,0.90602111]
[1770073948862,1.53007182,2356.8,2356.1,12.14429989]
[1770073949043,1.53007182,2356.8,2356.2,0.90632749]
[1770073949241,1.53007182,2356.8,2356.3,0.90632749]
[1770073949443,1.53007182,2356.8,2356.4,0.90632749]
[1770073949645,1.53007182,2356.8,2356.1,12.14429989]
[1770073949843,1.53007182,2356.8,2356.2,0.90681333]
[1770073950044,1.53007182,2356.8,2356.3,0.90681333]
[1770073950259,1.53007182,2356.8,2356.4,0.90681333]
[1770073950459,1.53007182,2356.8,2356.1,12.14429989]
[1770073950666,1.53007182,2356.8,2356.2,0.90684211]
[1770073950864,1.53007182,2356.8,2356.3,0.90684211]
[1770073951064,1.53007182,2356.8,2356.4,0.90684211]
[1770073951268,1.53007182,2356.8,2356.1,13.58629832]
[1770073951567,1.53007182,2356.8,2356.2,0.90687928]
[1770073951767,1.53007182,2356.8,2356.3,0.90687928]
[1770073951939,0.29018689,2356.7,2356.4,0.90687928]
[1770073952140,0.29018689,2356.7,2355.9,13.35882988]
[1770073952341,0.29018689,2356.7,2356.0,0.90692789]
[1770073952667,0.29018689,2356.7,2356.1,0.90692789]
[1770073952838,0.29018689,2356.7,2356.2,0.90692789]
[1770073953035,12.34617631,2356.7,2355.8,2.26041883]
[1770073953238,1.49370132,2356.6,2355.8,13.20650099]
[1770073953446,0.29018689,2356.7,2356.1,1.13463473]
[1770073953646,0.29018689,2356.7,2356.1,13.27893462]
[1770073953854,0.0011,2356.9,2356.3,12.14429989]
[1770073954266,0.0011,2356.9,2356.3,13.27893462]
[1770073956744,17.18846777,2357.2,2356.3,13.27893462]
[1770073956968,1.06065063,2357.1,2356.3,13.27893462]
[1770073959871,1.06065063,2357.1,2356.5,0.001]
[1770073960076,1.82491184,2357.0,2356.5,0.001]
[1770073960282,0.30177603,2357.7,2356.7,12.14429989]
[1770073960479,12.05598942,2358.5,2357.5,12.14429989]
[1770073960643,12.05598942,2358.5,2357.7,1.13126547]
[1770073961063,13.11599209,2358.5,2357.7,1.13126547]
[1770073961373,13.11599209,2358.5,2357.7,1.32755654]
[1770073961374,13.8227004,2358.5,2357.7,1.32755654]
[1770073961773,1.76671098,2358.5,2357.7,1.32755654]
[1770073962880,0.0011,2358.1,2357.7,1.32755654]
[1770073963974,0.0011,2358.1,2357.5,12.14429989]
[1770073964175,0.0011,2358.1,2357.5,13.204738]
[1770073964965,0.0011,2358.1,2357.2,2.19183378]
[1770073965194,0.0011,2358.1,2357.5,13.20474248]
[1770073965381,0.0011,2358.1,2357.5,12.14429989]
[1770073968474,0.0011,2358.1,2357.5,13.37348369]
[1770073968780,0.0011,2358.1,2357.5,14.43392768]
[1770073969386,0.3113112,2358.6,2357.6,12.14429989]
[1770073969586,0.3113112,2358.6,2357.8,12.14429989]
[1770073969984,0.3113112,2358.6,2357.7,0.89]
[1770073969985,12.20218966,2358.6,2357.7,0.89]
[1770073970216,1.32621163,2358.5,2357.7,2.85899627]
[1770073970411,1.32621163,2358.5,2357.7,3.91930931]
[1770073970822,14.09316015,2358.5,2357.7,1.96899627]
[1770073970995,13.0331546,2358.5,2357.5,2.28961107]
[1770073973005,14.09315852,2358.5,2357.5,15.24365733]
[1770073973506,13.0331546,2358.5,2357.5,15.24365733]
[1770073974506,14.09315245,2358.5,2357.2,12.95404626]
[1770073974707,14.09315245,2358.5,2357.4,1.06048593]
[1770073975224,14.09315245,2358.5,2357.7,0.001]
[1770073975422,1.32621163,2358.5,2357.7,12.95504626]
[1770073975625,0.26974765,2358.4,2357.7,12.95504626]
[1770073977137,0.0011,2358.3,2357.7,12.95504626]
[1770073977830,0.3113112,2358.6,2357.8,13.84304626]
[1770073978534,0.0011,2358.5,2357.8,13.84304626]
[1770073980897,0.0011,2358.5,2357.5,0.001]
[1770073980898,1.0600407,2358.4,2357.5,0.001]
[1770073981134,13.49666762,2358.3,2357.5,0.001]
[1770073981598,13.49666762,2358.3,2356.6,12.95404626]
[1770073981802,13.49666762,2358.3,2356.7,0.89981359]
[1770073982109,13.49666762,2358.3,2356.6,12.95404626]
[1770073982308,13.49666762,2358.3,2356.7,0.89988579]
[1770073982515,11.70694297,2357.8,2356.8,1.38539321]
[1770073983103,11.70694297,2358.0,2356.9,7.57542814]
[1770073983305,11.70694297,2358.0,2357.1,7.57542814]